[Event "Leca Open 2022"]
[Site "Leca da Palmeira"]
[Date "2022.08.05"]
[Round "8.1"]
[White "Nigmatov, Ortik"]
[Black "Spraggett, Kevin"]
[Result "1/2-1/2"]
[ECO "B48"]
[WhiteElo "2437"]
[BlackElo "2487"]
[Annotator "TA"]
[PlyCount "173"]
[EventDate "2022.08.02"]
[EventType "swiss"]
[EventCountry "POR"]
[SourceTitle "playchess.com"]
[Source "ChessBase"]
[SourceQuality "1"]
[TimeControl "5400+30"]

{[%evp 28,173,86,70,84,85,81,33,163,154,152,95,99,30,73,0,0,0,0,0,0,0,0,0,0,-52,12,11,64,44,175,0,0,-37,-65,-57,0,-6,0,0,0,0,0,-74,-91,-181,0,0,0,-337,-348,-339,-339,-348,-347,-510,-339,-540,-524,-515,-448,-731,-731,-869,-876,-717,-618,-645,-640,-1129,-1060,-1248,-98,-116,0,-943,-1132,-1109,-951,-1163,-937,-1314,-1314,-1120,-1127,-29956,-29955,-29953,-29959,-5701,-5143,-29975,-29976,-29976,-29977,-29978,-29972,-29980,-1162,-29964,-29950,-29958,-1077,-919,-845,-602,-194,-29974,-29967,-29967,-29968,-29968,-125,-29969,-29970,-29968,-29970,-29968,-29968,-29963,-29967,-1322,0,0,0,0,0,-206,0,0,0,0,0,-129,-128,-396,-396,-462,0,0,0,0,0,0,0,0,0,0]} 1. e4 {[%emt 0:00:03]} c5 {[%emt 0:04:42]} 2. Nf3 {[%emt 0:00:08]} e6 {[%emt 0:00:17]} 3. d4 {[%emt 0:00:05]} cxd4 {[%emt 0:00:05]} 4. Nxd4 {[%emt 0:00:03]} Nc6 {[%emt 0:00:07]} 5. Nc3 {[%emt 0:00:30]} Qc7 {[%emt 0:00:23]} 6. Be3 {[%emt 0:00:21]} a6 {[%emt 0:00:13]} 7. Qf3 {[%emt 0:00:29]} Nf6 {[%emt 0:00:29]} 8. O-O-O {[%emt 0:00:11]} h5 {[%emt 0:00:15]} 9. Nxc6 {[%emt 0:10:27]} bxc6 {[%emt 0:02:32]} 10. Bc4 {[%emt 0:00:22]} Be7 {[%emt 0:03:19]} 11. Bb3 {[%emt 0:01:43]} a5 {[%emt 0:24:18]} 12. Rhe1 {[%emt 0:05:26]} Bb7 {[%emt 0:04:17]} 13. Bg5 {[%emt 0:12:30]} c5 {[%emt 0:12:56]} 14. Qd3 {[%emt 0:27:54]} Bc6 {[%emt 0:13:50]} 15. e5 {[%emt 0:06:45]} Nd5 {[%emt 0:00:23]} 16. Bxe7 {[%emt 0:00:25]} ({Wrong is} 16. Nxd5 $2 Bxg5+ 17. Kb1 (17. f4 $2 Bxd5 18. Bxd5 Bxf4+ 19. Kb1 exd5 $19) 17... exd5 $19) 16... Nxe7 {[%emt 0:00:08]} 17. Nb5 {[%emt 0:04:40]} (17. Ba4 $16) 17... Qb6 {[%emt 0:02:56]} (17... Bxb5 $14 18. Qxb5 Ng6) 18. Nd6+ $18 {[%emt 0:00:37]} Kf8 {[#]} 19. Qe3 (19. Ba4 $142 $1 {[%mdl 512]}) 19... g6 {[%emt 0:11:36] [#]} 20. Nc4 {[%emt 0:12:39]} (20. Ba4 $1 $16) 20... Qa7 {[%emt 0:00:29]} 21. a4 {[%emt 0:00:04]} (21. c3 $16) 21... Nf5 $11 {[%emt 0:02:33]} 22. Qg5 {[%emt 0:00:11]} Rb8 {[%emt 0:03:16]} 23. Qf6 {[%emt 0:00:37]} Rh7 {[%emt 0:01:46]} 24. Rd3 $1 {[%emt 0:04:41]} Qc7 {[%emt 0:03:03]} 25. Nd6 {[%emt 0:04:26]} Qb6 {[%emt 0:02:41]} 26. Red1 {[%emt 0:04:09]} (26. Rc3 $11) 26... Nxd6 {[%emt 0:01:31]} (26... Nd4 $1 $15) 27. exd6 $11 {[%emt 0:00:33]} ({Not} 27. Rxd6 $2 c4 28. Bxc4 Qxb2+ 29. Kd2 Qb4+ 30. Kd3 Bxa4 $19) 27... Re8 {[%emt 0:00:36]} ({Black should play} 27... Kg8 $11) 28. Re3 $14 {[%emt 0:00:49]} Qb4 {[%emt 0:01:30] [#]} (28... Bxg2 $2 29. Bxe6 $1 Qd8 30. Qxd8 Rxd8 31. Bd5 Bxd5 32. Rxd5 $18) (28... Kg8 $14) 29. Qc3 $2 {[%emt 0:01:59]} (29. Bxe6 $1 $18 {[%mdl 512]} dxe6 30. d7 Bxd7 31. Rxd7) 29... Bxg2 {[%emt 0:01:07]} 30. Rg1 {[%emt 0:00:46]} Bc6 {[%emt 0:01:45]} 31. Qe5 {[%emt 0:00:10]} Qd4 {[%emt 0:00:45]} (31... Bxa4 $2 32. Re4 c4 33. Rf4 $16 (33. Rxc4 Qb5 $16)) (31... c4 $2 32. Rxg6 cxb3 33. Reg3 $1 Qe1+ 34. Qxe1 $18) (31... Qh4 $1 $15) 32. c3 $11 {[%emt 0:01:04]} Qh4 {[%emt 0:01:07]} 33. Bc2 {[%emt 0:00:15]} Rg7 {[%emt 0:00:47]} (33... Bxa4 $2 34. Bxg6 Qxf2 35. Rgg3 $18) 34. Reg3 $1 {[%emt 0:00:56]} f6 {[%emt 0:00:43]} (34... Bxa4 $2 35. Bxg6 f6 36. Qe3 $18) 35. Qxc5 {[%emt 0:00:04]} (35. Qe3 $1 $11 {remains equal.} g5 36. Rh3) 35... g5 $17 {[%emt 0:00:02]} 36. Qe3 {[%emt 0:00:57]} (36. h3 $17) 36... Bxa4 $2 {[%emt 0:00:34]} (36... Qxh2 $19 {Threatens to win with ...g4.} 37. Kb1 Kg8) 37. Qf3 {[%emt 0:01:13]} g4 {[%emt 0:00:33]} 38. Qd3 $2 {[%emt 0:00:44][%mdl 8192]} (38. Bxa4 $11 gxf3 39. Rxg7) 38... Bxc2 $19 {[%emt 0:00:12]} (38... Qxh2 $2 39. Bxa4 f5 40. Qe3 $18) 39. Kxc2 {[%emt 0:00:12]} Qxh2 {[%emt 0:00:21]} 40. Qe3 {[%emt 0:00:33]} f5 {[%emt 0:00:15]} 41. Qd4 {[%emt 0:00:38]} (41. R1g2 $142 Qh1 42. Qd4) 41... Kg8 {[%emt 0:00:51]} 42. Kb1 {[%emt 0:00:16]} (42. R3g2 {might work better.} Qh4 43. Qf4) 42... h4 $19 {[%emt 0:00:25]} 43. R3g2 {[%emt 0:00:35]} Qh3 {[%emt 0:00:05]} 44. Qf6 {[%emt 0:00:22]} (44. Qd1 $142) 44... Qd3+ $19 {[%emt 0:00:06]} 45. Kc1 {[%emt 0:00:38]} h3 {[%emt 0:00:12]} 46. Rg3 {[%emt 0:00:05]} Qxd6 {[%emt 0:00:05]} 47. Rxh3 {[%emt 0:00:07]} Qf4+ {[%emt 0:00:36]} 48. Kd1 {[%emt 0:01:15]} Qxf2 {[%emt 0:01:39]} 49. Rxg4 {[%emt 0:00:01] [#]} Qf1+ $2 {[%emt 0:01:00]} (49... fxg4 $1 $19 50. Qxf2 gxh3) 50. Kd2 $17 {[%emt 0:00:01] [#]} Qf2+ $2 {[%emt 0:00:04][%mdl 8192]} (50... fxg4 $1 $17 51. Qxf1 gxh3 52. Qxh3 Rb8) 51. Kd1 $19 {[%emt 0:00:03]} fxg4 {[%emt 0:00:41]} 52. Qxf2 {[%emt 0:00:07]} gxh3 {[%emt 0:00:04]} 53. Qh4 {[%emt 0:00:04]} Rb8 {[%emt 0:01:02]} 54. Kc2 {[%emt 0:00:25]} Rg2+ {[%emt 0:00:16]} 55. Kd3 {[%emt 0:00:08]} h2 {[%emt 0:00:27]} 56. b4 {[%emt 0:00:56]} axb4 {[%emt 0:00:16]} 57. Qh3 {[%emt 0:00:01]} h1=Q {[%emt 0:01:21]} 58. Qxh1 {[%emt 0:00:01]} Rg3+ {[%emt 0:00:13]} 59. Kd4 {[%emt 0:00:58]} bxc3 {[%emt 0:00:21]} 60. Qh2 {[%emt 0:00:10]} Rb4+ {[%emt 0:00:13]} 61. Ke5 {[%emt 0:00:14]} Rbg4 {[%emt 0:00:20]} 62. Qc2 {[%emt 0:00:14]} Kg7 {[%emt 0:00:47]} (62... Rc4 $142 63. Kf6 Rg7 64. Qa2 Rc6 65. Qa8+ Kh7 66. Qf8 e5+ 67. Kxe5 c2 68. Qf5+ Kg8 69. Qf4 c1=Q 70. Qxc1 Rxc1 71. Ke4 Rc4+ 72. Ke3 Rg3+ 73. Kd2 Kf7 74. Ke1 Rc2 75. Kd1 Rgg2 76. Ke1 Rg1#) 63. Kd6 {[%emt 0:00:30]} Rd4+ {[%emt 0:00:27]} 64. Ke7 {[%emt 0:00:00]} Rd2 {[%emt 0:01:06]} (64... Kg8 $142 65. Kd8 Rd2 66. Qb3 Rdd3 67. Qc2 Kf7 68. Qe2 Rgf3 69. Qh2 e5 70. Qh4 Ke6 71. Ke8 Kf5 72. Qh7+ Kg4 73. Qe4+ Kh3 74. Qe1 e4 75. Ke7 d5 76. Qh1+ Kg4 77. Qg1+ Kf5 78. Qh2 Rd2 79. Qh4 Ke5 80. Qg5+ Kd4 81. Kd7 Rdf2 82. Kc6 Rf6+ 83. Kc7 c2 84. Qc1 e3 85. Kc8 Rb6 86. Qa1+ Kd3 87. Kc7 Rb1 88. Qa3+ Ke4 89. Qa4+ Kf3 90. Kd8 c1=Q 91. Qa6 e2 92. Qd3+ Kg4 93. Qd4+ Qf4 94. Qg7+ Qg5+ 95. Qxg5+ Kxg5 96. Ke7 e1=Q+ 97. Kd7 Qe5 98. Kc8 Rf7 99. Kd8 Qh8#) 65. Qe4 $19 {[%emt 0:00:01]} Rd5 {[%emt 0:00:07]} 66. Qf4 {[%emt 0:00:12]} Rg6 $2 {[%emt 0:00:27]} (66... Rdd3 67. Qf7+ Kh6 68. Qf4+ Kh7) 67. Qf3 $2 {[%emt 0:00:59]} (67. Qc7 $19) 67... c2 {[%emt 0:00:46]} 68. Qc3+ {[%emt 0:00:10]} e5 {[%emt 0:00:20]} 69. Qxc2 {[%emt 0:00:01]} Re6+ {[%emt 0:00:03]} 70. Kd8 {[%emt 0:00:06]} e4 {[%emt 0:00:33]} 71. Qg2+ {[%emt 0:00:10]} Kf6 {[%emt 0:00:12]} 72. Qf2+ {[%emt 0:00:27]} Rf5 {[%emt 0:00:29]} 73. Qd4+ {[%emt 0:00:01]} Ree5 {[%emt 0:00:22]} 74. Qe3 {[%emt 0:00:02]} Rf3 $2 {[%emt 0:00:20]} (74... Rg5 $19 75. Qf2+ Ke6) 75. Qh6+ $11 {[%emt 0:00:13]} Kf5 {[%emt 0:00:01]} 76. Qh7+ {[%emt 0:02:51]} Kf4 {[%emt 0:00:17]} 77. Qh2+ $2 {[%emt 0:00:49]} (77. Qh4+ $1 $11 {and White is okay.} Ke3 78. Qe1+ Kd3 79. Qd1+ Ke3 80. Qe1+ Kf4 81. Qh4+ Kf5 82. Qh5+ Kf6 83. Qh8+ Kf5 84. Qh5+ Kf6 85. Qh8+ Kf5 86. Qh5+) 77... Kf5 $2 {[%emt 0:01:24]} (77... Rg3 $1 $19 {White must now prevent ...e3.} 78. Qh4+ Rg4 79. Qf6+ Rf5 80. Qd6+ Ke3 81. Kxd7 Rgg5 82. Qa3+ Ke2 83. Qa2+ Kf3) 78. Qh7+ $11 {[%emt 0:00:01]} Kg5 {[%emt 0:00:37]} (78... Kf4 $5 79. Qh4+ Kf5 80. Qh5+ Ke6 81. Qe8+ Kd6 82. Qxd7+ Kc5 83. Qa7+ Kd6 84. Qd7+ Kc5 85. Qa7+ Kd6 86. Qd7+ $11) 79. Qg7+ {[%emt 0:00:34]} Kf4 {[%emt 0:00:29]} 80. Qh6+ {[%emt 0:00:06] [#]} (80. Qf6+ $1 $11 Rf5 81. Qh4+ Ke3 82. Qe1+ Kf4 83. Qh4+ Ke3 84. Qe1+ Kf4 85. Qh4+) 80... Rg5 $1 $17 {[%emt 0:00:21]} 81. Kxd7 $2 {[%emt 0:03:48][%mdl 8192] [#]} (81. Qd6+ $17 {only move.} Kg4 82. Qxd7+ Rgf5 83. Qg7+ Rg5 84. Qd7+ Rgf5 85. Qg7+ Kh3 86. Qh6+ Kg3 87. Qg7+ Kh2 88. Qh6+ Kg3 89. Qg7+ Kh3 90. Qh8+ Kg4 91. Qg7+) 81... e3 $1 $19 {[%emt 0:00:12]} 82. Kd6 {[%emt 0:01:37]} e2 $2 {[%emt 0:01:29]} ({Black should try} 82... Rfg3 $19 {( -> ...e2)} 83. Qf6+ Ke4) 83. Qf6+ $1 $11 {[%emt 0:00:04]} Rf5 {[%emt 0:00:39]} (83... Kg4 $5 84. Qe6+ Kh4 85. Qe4+ Kg3 86. Qxe2 Rgf5 $11) 84. Qd4+ $1 {[%emt 0:00:02]} Kg3 {[%emt 0:00:28]} (84... Kg5 $5 {[%cal Rf5f6]} 85. Qd2+ R3f4 $11) 85. Qg1+ {[%emt 0:00:06]} Kf4 {[%emt 0:00:49]} 86. Qd4+ {[%emt 0:00:02]} Kg3 {[%emt 0:00:21]} (86... Kg5 $5 87. Qd2+ R3f4 $11) 87. Qg1+ {[%emt 0:00:06]} 1/2-1/2

[Event "Leca Open 2022"]
[Site "Leca da Palmeira"]
[Date "2022.08.04"]
[Round "8.2"]
[White "Krishna C R G"]
[Black "Motylev, Alexander"]
[Result "0-1"]
[ECO "D11"]
[WhiteElo "2430"]
[BlackElo "2632"]
[Annotator "TA"]
[PlyCount "30"]
[EventDate "2022.08.02"]
[EventType "swiss"]
[EventCountry "POR"]
[SourceTitle "playchess.com"]
[Source "ChessBase"]
[SourceQuality "1"]
[TimeControl "5400+30"]

{[%evp 13,30,-25,6,-8,0,0,0,14,2,-20,-28,-24,-19,-48,-11,-63,-63,-395,-383]} 1. d4 {[%emt 0:00:04]} d5 {[%emt 0:00:11]} 2. c4 {[%emt 0:00:04]} c6 {[%emt 0:00:08]} 3. Nf3 {[%emt 0:00:06]} Nf6 {[%emt 0:00:06]} 4. g3 {[%emt 0:00:26]} Bf5 {[%emt 0:00:30]} 5. Bg2 {[%emt 0:02:06]} e6 {[%emt 0:00:59]} 6. O-O {[%emt 0:00:10]} Nbd7 {[%emt 0:01:12]} 7. Nc3 {[%emt 0:14:44]} h6 {[%emt 0:02:02]} 8. Ne5 {[%emt 0:15:22] D11: Slav Defence: 3 Nf3 sidelines and 3...Nf6 4 e3 Bg4.} Be7 {[%emt 0:09:57]} 9. Qb3 {[%emt 0:01:12]} O-O {[%emt 0:12:42]} 10. cxd5 {[%emt 0:09:28] The position is equal.} cxd5 {[%emt 0:00:24]} 11. Bf4 {[%emt 0:01:01] [#]} Nxe5 $146 {[%emt 0:02:56]} ({Predecessor:} 11... Qb6 12. Qxb6 Nxb6 13. f3 Bh7 14. e4 Rfd8 15. Rfd1 Bb4 16. exd5 Nfxd5 {½-½ (27) Splichal,S (2138)-Kulovana,E (2197) Czech Republic 2016}) 12. Bxe5 {[%emt 0:01:33]} Qd7 {[%emt 0:05:50]} 13. Rac1 {[%emt 0:19:41]} Rac8 {[%emt 0:07:53][%cal Ba8c8,Bc8c6,Bc6c3][%mdl 32]} 14. Qb5 {[%emt 0:09:10]} (14. Nb5 $11) 14... Rc6 $15 {[%emt 0:02:20]} 15. Rfd1 $2 {[%emt 0:21:09][%mdl 8192] [#]} (15. e3 $15) 15... Rxc3 $1 {[%emt 0:05:32][%mdl 512] Weighted Error Value: White=0.87/Black=0.10 (very precise)} 0-1

[Event "Leca Open 2022"]
[Site "Leca da Palmeira"]
[Date "2022.08.04"]
[Round "8.3"]
[White "Perez Candelario, Manuel"]
[Black "Panesar Vedant"]
[Result "1/2-1/2"]
[ECO "C24"]
[WhiteElo "2578"]
[BlackElo "2318"]
[Annotator "TA"]
[PlyCount "58"]
[EventDate "2022.08.02"]
[EventType "swiss"]
[EventCountry "POR"]
[SourceTitle "playchess.com"]
[Source "ChessBase"]
[SourceQuality "1"]
[TimeControl "5400+30"]

{[%evp 10,58,0,6,8,8,14,6,10,4,18,9,15,0,18,6,18,-14,-21,-24,-17,-22,0,-26,-10,-8,-7,-10,-2,-37,-31,-28,0,-14,0,-47,-57,-65,-55,-61,-58,-70,-36,-87,-71,-104,-91,-69,-89,-89,0]} 1. e4 {[%emt 0:00:02]} e5 {[%emt 0:03:10]} 2. Bc4 {[%emt 0:00:05]} Nf6 {[%emt 0:00:25]} 3. d3 {[%emt 0:00:05]} Nc6 {[%emt 0:00:31]} 4. Nc3 {[%emt 0:00:10][%cal Bb1c3,Bc3e2,Be2g3][%mdl 32]} Bb4 {[%emt 0:00:16]} 5. Nf3 {[%emt 0:00:28]} d6 {[%emt 0:03:03]} 6. O-O {[%emt 0:11:11]} Na5 {[%emt 0:04:53] C28: Vienna Game: 2...Nf6 3 Bc4 Nc6.} 7. Bb3 {[%emt 0:08:36]} Nxb3 {[%emt 0:00:57]} 8. axb3 {[%emt 0:00:03]} h6 {[%emt 0:02:08] The position is equal.} 9. Ne2 {[%emt 0:04:40]} O-O {[%emt 0:00:32] [#]} 10. Ng3 $146 {[%emt 0:00:10]} ({Predecessor:} 10. c3 Bc5 11. Ng3 Bb6 12. Re1 Re8 13. h3 c6 14. d4 exd4 15. Nxd4 Bc7 16. Qf3 {½-½ (38) Glaeser,A (1304)-Duan,M (1246) Willingen 2016}) 10... Re8 {[%emt 0:01:59]} 11. Bd2 {[%emt 0:08:47]} Bc5 {[%emt 0:02:39]} 12. h3 {[%emt 0:01:40]} c6 {[%emt 0:02:43]} 13. Be3 {[%emt 0:04:34]} Bxe3 {[%emt 0:06:22]} 14. fxe3 {[%emt 0:00:44]} Be6 {[%emt 0:04:53]} 15. Qe1 {[%emt 0:01:09]} Nh7 {[%emt 0:02:02]} 16. Kh2 {[%emt 0:03:37]} a6 {[%emt 0:01:38]} 17. Rd1 {[%emt 0:05:54]} Qe7 {[%emt 0:07:32]} 18. d4 {[%emt 0:03:43]} Nf6 {[%emt 0:22:22]} 19. dxe5 {[%emt 0:13:01]} dxe5 {[%emt 0:01:00]} 20. Qc3 {[%emt 0:00:04]} Qc7 {[%emt 0:09:04]} 21. Rd2 {[%emt 0:00:43]} ({Much weaker is} 21. Nxe5 {[#]} Bxh3 $1 {[%mdl 512]} 22. Rxf6 gxf6 $15) (21. Qxe5 Qxe5 22. Nxe5 Bxh3 $1 {[%mdl 512]} 23. Nxf7 Bg4 $17) 21... Rad8 {[%emt 0:00:43]} 22. Rfd1 {[%emt 0:01:33]} (22. Rxd8 $11 {should be considered.} Qxd8 23. Qc5 (23. Nxe5 Qc7 $11)) 22... Rxd2 $15 {[%emt 0:01:21]} 23. Rxd2 {[%emt 0:00:25]} Nd7 {[%emt 0:00:46]} 24. b4 {[%emt 0:01:58]} Ra8 {[%emt 0:01:29]} 25. b3 {[%emt 0:02:40]} Re8 {[%emt 0:00:37]} 26. Rd1 {[%emt 0:03:12]} (26. Ne1 $15) 26... Rc8 $17 {[%emt 0:00:25]} 27. Nh4 {[%emt 0:02:22]} g6 {[%emt 0:04:35] Against Nhf5} 28. Nhf5 {[%emt 0:00:44]} Nf6 {[%emt 0:02:16]} ({Much worse is} 28... gxf5 29. exf5 Bd5 30. e4 $11) 29. Nh4 {[%emt 0:04:33]} Nd7 {[%emt 0:05:11] Weighted Error Value: White=0.13 (very precise) /Black=0.07 (flawless)} (29... Ne8 $17) 1/2-1/2

[Event "Leca Open 2022"]
[Site "Leca da Palmeira"]
[Date "2022.08.04"]
[Round "8.4"]
[White "Martinez Duany, Lelys Stanley"]
[Black "Balaji, Aaravamudhan"]
[Result "1-0"]
[ECO "A05"]
[WhiteElo "2497"]
[BlackElo "2228"]
[Annotator "TA"]
[PlyCount "81"]
[EventDate "2022.08.02"]
[EventType "swiss"]
[EventCountry "POR"]
[SourceTitle "playchess.com"]
[Source "ChessBase"]
[SourceQuality "1"]
[TimeControl "5400+30"]

{[%evp 11,80,-9,0,-6,-6,-11,8,2,2,10,-1,0,50,36,33,39,36,41,39,39,25,0,0,0,0,0,0,0,12,10,20,24,27,16,24,12,25,18,14,14,19,13,18,14,11,15,71,0,17,16,14,11,130,115,120,127,133,134,143,139,146,152,168,156,170,162,179,174,638,595,29999]} 1. Nf3 Nf6 2. c4 g6 3. b4 Bg7 4. Bb2 O-O 5. e3 d6 6. d4 c5 {[#]} 7. Be2 $146 {E60: King's Indian: Unusual lines and Fianchetto Variation without Nc3.} ({Predecessor:} 7. a3 cxd4 8. exd4 e5 9. dxe5 dxe5 10. Qxd8 Rxd8 11. Nxe5 Ng4 12. Nd3 Re8+ 13. Be2 Bf5 14. Kd2 Bxd3 15. Bxg4 Bxb2 16. Ra2 Rd8 17. Rxb2 Bf5+ 18. Kc3 Bxg4 19. Nd2 Bf5 {0-1 (19) Carlsen,M (2847)-Dubov,D (2710) chess24.com INT 2021}) 7... cxb4 8. O-O (8. Nbd2 Nbd7 $15) 8... e5 9. a3 {The position is equal.} bxa3 10. Nxa3 exd4 11. Nxd4 d5 (11... a6 $11) 12. cxd5 Nxd5 13. Nc4 Nc6 14. Nxc6 bxc6 15. Bxg7 Kxg7 16. Rxa7 {[%mdl 64] Decoy} Rxa7 17. Qd4+ Qf6 18. Qxa7 Nc3 19. Bf3 Bf5 {Threatens to win with ...Bd3.} 20. Qc5 Rd8 {Against Nd6} 21. Ne5 ({Avoid the trap} 21. Qxc6 $2 Qxc6 22. Bxc6 Bd3 $19) ({Don't play} 21. Bxc6 Bd3 22. Ne5 (22. Re1 $2 Bxc4 23. Qxc4 Rc8 $19) 22... Bxf1 23. Qxc3 Ba6 $17) 21... Ne4 22. Bxe4 Bxe4 23. Ng4 Qd6 (23... Qf5 24. Qc3+ f6 25. f3 $16) 24. Qc3+ f6 25. f3 Bf5 26. Nf2 Qd2 27. Qa3 Qd6 {Prevents Qe7+.} 28. Qa5 {Strongly threatening Rd1.} Qd2 {[#]} (28... Rd7 $11) 29. Qa3 (29. Qb6 $1 $16) 29... Qd6 $11 30. Qa1 Qc5 31. g4 Be6 {[#]} (31... Bc2 $1 $11) 32. Qxf6+ $3 $16 {[%mdl 512]} Kxf6 33. Ne4+ Ke5 34. Nxc5 {[%mdl 4096] Endgame KRB-KRN} Rd2 {[#]} 35. Rf2 $1 Rd1+ 36. Kg2 Bc4 37. Rc2 Bb5 38. Ne4 Rd5 39. Kg3 Bd3 $2 (39... h6 40. Nc3 Rd8 41. f4+ Ke6) 40. Rxc6 $18 {White threatens f4+ and mate.} Bxe4 41. f4# {Weighted Error Value: White=0.06 (flawless) /Black=0.60} ({Not} 41. fxe4 Rd1 $16) 1-0

[Event "Leca Open 2022"]
[Site "Leca da Palmeira"]
[Date "2022.08.05"]
[Round "8.6"]
[White "Rodriguez Lopez, Rafael"]
[Black "Martins, Bruno Andre Leite"]
[Result "1-0"]
[ECO "C07"]
[WhiteElo "2172"]
[BlackElo "2331"]
[Annotator "TA"]
[PlyCount "135"]
[EventDate "2022.08.02"]
[EventType "swiss"]
[EventCountry "POR"]
[SourceTitle "playchess.com"]
[Source "ChessBase"]
[SourceQuality "1"]
[TimeControl "5400+30"]

{[%evp 9,135,22,39,41,47,49,43,48,61,17,25,16,60,19,6,10,8,14,12,24,30,12,0,7,12,11,11,0,10,7,25,0,0,0,0,-16,0,0,2,0,0,0,11,6,25,15,6,0,13,0,0,0,7,2,1,-3,9,0,10,0,7,7,0,0,0,0,5,11,112,113,135,133,126,65,163,98,216,147,163,153,150,137,288,229,227,231,240,239,305,305,305,301,291,216,205,207,188,169,216,189,451,442,583,570,544,313,407,411,481,445,520,320,400,410,582,437,511,469,828,654,641,626,2308,2034,2776,2632,1945,1561]} 1. e4 e6 2. d4 d5 3. Nd2 c5 4. exd5 Qxd5 5. Ngf3 Nc6 6. Bc4 {C07: French Tarrasch: 3...c5, 4 Ngf3 and 4 exd5 Qxd5.} Qd7 7. dxc5 Bxc5 8. O-O {White is slightly better.} Nf6 {Against Ne4} 9. c3 O-O 10. Qe2 a6 {[#]} 11. Rd1 $146 (11. Ne4 $5 {[%cal Re4c5]} Be7 12. Nxf6+ Bxf6 13. Rd1 $14) ({Predecessor:} 11. Ne4 Nxe4 12. Qxe4 Be7 13. Bf4 Na5 14. Bd3 f5 15. Qe2 Bf6 16. Ne5 Qe7 17. Rad1 Bxe5 18. Bxe5 {1-0 (53) Demchenko,A (2654)-Artemenko,O (2246) Chess.com INT 2022}) 11... Rd8 12. Bb3 {And now Ne4 would win.} Qd3 {Against Ne4} 13. Qe1 b5 {Prevents Nc4.} 14. Nf1 Qe4 15. Rxd8+ Nxd8 16. Be3 Bxe3 17. Nxe3 Bb7 18. Rd1 Nc6 {[%cal Bd8c6,Bc6e5,Be5g6,Bg6f4][%mdl 32]} 19. Nd4 Ne5 20. h3 Ng6 21. Bc2 Qe5 22. Bd3 Nf4 {[%cal Ob7g2] ...Bxg2! is the strong threat.} 23. Bf1 N6d5 24. Ndc2 Nf6 25. Qd2 {[%cal Od2d8]} Qe4 {[%cal Of4h3]} 26. Kh2 Qc6 27. Qd4 N4d5 28. Kg1 h6 29. c4 bxc4 30. Nxc4 Qa4 31. N2a3 Qb4 32. Qe5 Rd8 33. Rc1 {[%cal Bd1c1,Bc1c2,Bc2d2][%mdl 32]} Rc8 34. Rc2 Ne8 35. Rd2 Qc5 36. Nc2 a5 37. a3 Kf8 38. Nd4 Ba6 {[#]} (38... a4 $11 {keeps the balance.}) 39. Nb3 $1 $36 {[%csl LRa5,LRc5][%mdl 2048] White is in control. 0x0.0024c289a9dcdp-1022s more active pieces.} Qa7 40. Nbxa5 Rc5 {[%cal Oc5a5]} 41. b4 (41. Qd4 $16 {Threatens to win with Nc6.} Rc7 42. Qxa7 Rxa7 43. Rd4) 41... Rc7 {Against Nc6} ({Black should play} 41... Bxc4 $14 42. Nxc4 Nxb4) 42. Qd4 (42. Qg3 $18) 42... Qb8 (42... Qxd4 $16 {is a better defense.} 43. Rxd4 Bb5) 43. Rd1 Nef6 44. Rc1 Kg8 45. Nb3 Qc8 $2 {Black cannot hold the game after this.} (45... Nd7 $16) 46. Nc5 Bxc4 47. Bxc4 ({Resist} 47. Rxc4 Kh8 48. Na6 Rxc4 49. Bxc4 Ne7) 47... Qa8 48. Qb2 Nf4 {[%csl Gf4][%cal Ra8g2] [#]} 49. Bf1 Qc8 50. Rc4 N4d5 51. Qc1 Nb6 52. Rc2 Nfd5 53. Bd3 {[%cal Bf1d3,Bd3e4,Be4f3,Bf3e2][%mdl 32]} Qa8 (53... Qd8 $142 54. Bb5 Qa8) 54. Be4 $18 {[%cal Oa3a4]} Ra7 $2 (54... Qd8 55. Qd1 Ra7) 55. a4 {[%cal Ba3a4,Ba4a5][%mdl 32]} Rc7 56. a5 Nc8 57. Bf3 Nd6 58. Nd3 Rxc2 59. Qxc2 Qa6 60. Qb3 Nc7 61. Nc5 Qa7 (61... Qc4 {was worth a try.} 62. Qxc4 Nxc4) 62. Be2 {White is clearly winning.} Nf5 63. Bd3 Nd4 (63... Nd6 $142 64. Qa4 Nd5) 64. Qc4 Ndb5 65. Qe4 Kf8 66. Qc6 Kg8 67. Bxb5 Qb8 68. Bf1 {Weighted Error Value: White=0.17 (very precise) /Black=0.31} 1-0

[Event "Leca Open 2022"]
[Site "Leca da Palmeira"]
[Date "2022.08.04"]
[Round "8.7"]
[White "Abdisalimov, Abdimalik"]
[Black "Rego, Pedro Filipe"]
[Result "1-0"]
[ECO "E46"]
[WhiteElo "2437"]
[BlackElo "2251"]
[Annotator "TA"]
[PlyCount "39"]
[EventDate "2022.08.02"]
[EventType "swiss"]
[EventCountry "POR"]
[SourceTitle "playchess.com"]
[Source "ChessBase"]
[SourceQuality "1"]
[TimeControl "5400+30"]

{[%evp 9,39,-10,13,0,0,0,1,-25,-21,0,7,13,49,49,197,194,526,511,493,480,739,747,711,706,1899,1892,1895,1848,3159,3080,29989,29990]} 1. d4 Nf6 2. c4 e6 3. Nc3 Bb4 {[%cal Bf8b4,Bb4a5,Ba5c7][%mdl 32]} 4. e3 {[%cal Be2e3,Be3e4,Be4e5][%mdl 32]} O-O 5. Nge2 c6 6. a3 {E46: Nimzo-Indian: Rubinstein: 4 e3 0-0 5 Ne2 without early Bd3.} Ba5 7. b4 Bc7 8. e4 {The position is equal.} d5 9. e5 Nfd7 {9...Nfd7 scores better than 9...Ne8.} 10. Nf4 {[%cal Rc4d5]} Qe7 {[#]} (10... a5 $5 {[%cal Ra5b4]} 11. Rb1 (11. cxd5 axb4 12. d6 Bxd6 $17) 11... axb4 12. axb4 (12. Rxb4 $2 c5 $19) 12... c5 $11) 11. Bd3 $146 {[%mdl 2048] White is pushing.} ({Predecessor:} 11. Qc2 f6 12. cxd5 fxe5 13. Nxe6 exd4 14. Bc4 Nb6 15. Bg5 Qe8 16. Bb3 dxc3 17. O-O Bxe6 18. dxe6 {0-1 (32) Lamaze,S (2369)-Polanco Nunez,Y (2203) Chess.com INT 2022}) 11... f6 (11... dxc4 $14 12. Bxc4 a5) 12. cxd5 $18 ({Less strong is} 12. Qh5 g6 13. Qh4 (13. Nxg6 hxg6 14. Qg4 Qg7 $17) 13... Qf7 $11) 12... exd5 {[#]} (12... Nxe5 {is tougher.} 13. dxe5 exd5) 13. Qc2 (13. Qh5 g6 14. Bxg6 (14. Nxg6 hxg6 15. Qxg6+ Qg7 $11) 14... Nb6 $16) 13... Nxe5 14. Bxh7+ ({Not} 14. dxe5 g6 15. O-O Bxe5 $18) 14... Kf7 (14... Kh8 $142) 15. dxe5 Qxe5+ 16. Be3 d4 17. Qg6+ Ke7 18. Qxg7+ Rf7 19. Ng6+ Ke6 20. Bg8 {Black did not feel at home in the position after the opening.  Weighted Error Value: White=0.03 (flawless) /Black=1.04} 1-0